[Event "*** Titled Tuesday Blitz"]
[Site "Chess.com"]
[Date "2021.02.02"]
[Round "5"]
[White "GumisGLHF"]
[Black "beto-betun"]
[Result "1-0"]
[WhiteElo "2352"]
[BlackElo "2188"]
[TimeControl "180+1"]
[EndTime "10:58:31 PST"]
[Termination "GumisGLHF won on time"]

1. c4 {[%clk 0:03:00.9]} 1... Nf6 {[%clk 0:02:45.5]} 2. Nf3 {[%clk 0:02:59.8]}
2... c5 {[%clk 0:02:45.1]} 3. b3 {[%clk 0:02:58.6]} 3... Nc6 {[%clk 0:02:44.2]}
4. Bb2 {[%clk 0:02:58.9]} 4... g6 {[%clk 0:02:43.8]} 5. Nc3 {[%clk 0:02:55.9]}
5... Bg7 {[%clk 0:02:43.6]} 6. g3 {[%clk 0:02:54.7]} 6... O-O {[%clk 0:02:44]}
7. Bg2 {[%clk 0:02:55.1]} 7... d6 {[%clk 0:02:38.7]} 8. O-O {[%clk 0:02:54.5]}
8... e5 {[%clk 0:02:38.7]} 9. d3 {[%clk 0:02:54.2]} 9... h6 {[%clk 0:02:36]} 10.
Ne1 {[%clk 0:02:48.6]} 10... a6 {[%clk 0:02:29.4]} 11. Nc2 {[%clk 0:02:47.6]}
11... Rb8 {[%clk 0:02:27.5]} 12. Ne3 {[%clk 0:02:43.4]} 12... Nd4 {[%clk
0:02:06.2]} 13. Rc1 {[%clk 0:02:34.6]} 13... b5 {[%clk 0:01:45]} 14. Ncd5 {[%clk
0:02:27.7]} 14... Nxd5 {[%clk 0:01:37.1]} 15. Nxd5 {[%clk 0:02:26.6]} 15... Be6
{[%clk 0:01:30.1]} 16. e3 {[%clk 0:02:26.1]} 16... Nf5 {[%clk 0:01:27.4]} 17.
Qf3 {[%clk 0:02:05.1]} 17... Ne7 {[%clk 0:01:19.3]} 18. Nf6+ {[%clk 0:01:37.7]}
18... Kh8 {[%clk 0:01:10.6]} 19. cxb5 {[%clk 0:01:37.9]} 19... axb5 {[%clk
0:01:09.2]} 20. d4 {[%clk 0:01:38.3]} 20... exd4 {[%clk 0:00:50.9]} 21. exd4
{[%clk 0:01:39.2]} 21... Nf5 {[%clk 0:00:48.3]} 22. d5 {[%clk 0:01:18.4]} 22...
Bxf6 {[%clk 0:00:37.1]} 23. Bxf6+ {[%clk 0:01:17.9]} 23... Qxf6 {[%clk 0:00:38]}
24. dxe6 {[%clk 0:01:18.2]} 24... fxe6 {[%clk 0:00:36.8]} 25. h4 {[%clk
0:01:02.5]} 25... Nd4 {[%clk 0:00:35.7]} 26. Qe3 {[%clk 0:01:02.4]} 26... Kg7
{[%clk 0:00:33.3]} 27. Rfe1 {[%clk 0:01:00.2]} 27... e5 {[%clk 0:00:31.5]} 28.
Qd2 {[%clk 0:00:54.8]} 28... Rbd8 {[%clk 0:00:25.5]} 29. Bd5 {[%clk 0:00:52.3]}
29... b4 {[%clk 0:00:13.3]} 30. Kg2 {[%clk 0:00:45.5]} 30... Nf3 {[%clk
0:00:10.9]} 31. Qe3 {[%clk 0:00:38.7]} 31... Nd4 {[%clk 0:00:09.5]} 32. Rcd1
{[%clk 0:00:33.8]} 32... Rd7 {[%clk 0:00:03.9]} 33. Rd2 {[%clk 0:00:33.8]} 33...
Re7 {[%clk 0:00:03.4]} 34. f4 {[%clk 0:00:30.3]} 1-0

[Event "*** Titled Tuesday Blitz"]
[Site "Chess.com"]
[Date "2021.02.02"]
[Round "5"]
[White "TST2014"]
[Black "MrrRefrao"]
[Result "1-0"]
[WhiteElo "2550"]
[BlackElo "2392"]
[TimeControl "180+1"]
[EndTime "10:58:32 PST"]
[Termination "TST2014 won on time"]

1. d4 {[%clk 0:03:00.9]} 1... Nf6 {[%clk 0:02:06.4]} 2. c4 {[%clk 0:02:59.5]}
2... g6 {[%clk 0:02:06]} 3. Nc3 {[%clk 0:02:59.2]} 3... d5 {[%clk 0:02:05.6]} 4.
Nf3 {[%clk 0:02:58.9]} 4... Bg7 {[%clk 0:02:04.1]} 5. Bg5 {[%clk 0:02:58.3]}
5... Ne4 {[%clk 0:02:02.6]} 6. Bh4 {[%clk 0:02:55.7]} 6... Nxc3 {[%clk
0:01:58.9]} 7. bxc3 {[%clk 0:02:56.6]} 7... O-O {[%clk 0:01:58.1]} 8. cxd5
{[%clk 0:02:55.6]} 8... Qxd5 {[%clk 0:01:59]} 9. Bxe7 {[%clk 0:02:55]} 9... Re8
{[%clk 0:01:57.5]} 10. Ba3 {[%clk 0:02:54.1]} 10... Qc4 {[%clk 0:01:24.3]} 11.
Qb3 {[%clk 0:02:40.2]} 11... Qc6 {[%clk 0:01:21.2]} 12. e3 {[%clk 0:02:37.9]}
12... Be6 {[%clk 0:01:17.1]} 13. Bb5 {[%clk 0:02:26.6]} 13... Qb6 {[%clk
0:01:00.5]} 14. Bc4 {[%clk 0:02:08.1]} 14... Nc6 {[%clk 0:00:42.2]} 15. Bxe6
{[%clk 0:01:59.9]} 15... fxe6 {[%clk 0:00:41.6]} 16. O-O {[%clk 0:01:54.9]}
16... Na5 {[%clk 0:00:41.5]} 17. Qa4 {[%clk 0:01:47.9]} 17... c6 {[%clk
0:00:31.9]} 18. Rab1 {[%clk 0:01:39.9]} 18... Qc7 {[%clk 0:00:32]} 19. Qb4
{[%clk 0:01:21.1]} 19... b5 {[%clk 0:00:27.6]} 20. Qd6 {[%clk 0:01:16.2]} 20...
Qc8 {[%clk 0:00:25.5]} 21. Qf4 {[%clk 0:01:12.2]} 21... Nc4 {[%clk 0:00:23.3]}
22. Bc5 {[%clk 0:01:10.5]} 22... e5 {[%clk 0:00:19.2]} 23. Qh4 {[%clk
0:01:10.2]} 23... e4 {[%clk 0:00:18.3]} 24. Ng5 {[%clk 0:01:10]} 24... h6 {[%clk
0:00:14.5]} 25. Nxe4 {[%clk 0:01:08.4]} 25... g5 {[%clk 0:00:14.8]} 26. Nxg5
{[%clk 0:01:04.3]} 26... hxg5 {[%clk 0:00:14.7]} 27. Qxg5 {[%clk 0:01:03.7]}
27... Qd7 {[%clk 0:00:13.7]} 28. Rbd1 {[%clk 0:01:01.1]} 28... Qf7 {[%clk
0:00:10.4]} 29. h4 {[%clk 0:00:59.3]} 29... Re6 {[%clk 0:00:10]} 30. Rfe1 {[%clk
0:00:49.5]} 30... Rg6 {[%clk 0:00:07.6]} 31. Qf4 {[%clk 0:00:48.4]} 31... Rf6
{[%clk 0:00:06]} 32. Qg3 {[%clk 0:00:47.9]} 32... Kh7 {[%clk 0:00:05.9]} 33. e4
{[%clk 0:00:47.8]} 33... Rg8 {[%clk 0:00:05.8]} 34. e5 {[%clk 0:00:48]} 34...
Rg6 {[%clk 0:00:04.9]} 35. Qd3 {[%clk 0:00:46.9]} 35... Kh8 {[%clk 0:00:03.2]}
36. g3 {[%clk 0:00:46.3]} 36... Bh6 {[%clk 0:00:01.9]} 37. Re4 {[%clk
0:00:43.7]} 37... Qe6 {[%clk 0:00:02]} 38. Rde1 {[%clk 0:00:43.2]} 38... Qf5
{[%clk 0:00:01.8]} 39. Qe2 {[%clk 0:00:41.5]} 1-0

[Event "*** Titled Tuesday Blitz"]
[Site "Chess.com"]
[Date "2021.02.02"]
[Round "5"]
[White "SergeyShtyka"]
[Black "hermionegrangermagic"]
[Result "1-0"]
[WhiteElo "2483"]
[BlackElo "2632"]
[TimeControl "180+1"]
[EndTime "10:58:35 PST"]
[Termination "SergeyShtyka won by checkmate"]

1. e4 {[%clk 0:03:00.9]} 1... c5 {[%clk 0:02:56.4]} 2. Nf3 {[%clk 0:03:01.1]}
2... Nc6 {[%clk 0:02:55.9]} 3. d4 {[%clk 0:03:01.5]} 3... cxd4 {[%clk
0:02:56.8]} 4. Nxd4 {[%clk 0:03:02.1]} 4... e5 {[%clk 0:02:56.7]} 5. Nb5 {[%clk
0:03:01.2]} 5... d6 {[%clk 0:02:56.6]} 6. N1c3 {[%clk 0:03:00.6]} 6... a6 {[%clk
0:02:57]} 7. Na3 {[%clk 0:03:00.5]} 7... b5 {[%clk 0:02:57.6]} 8. Nd5 {[%clk
0:03:00.8]} 8... Nge7 {[%clk 0:02:58]} 9. c4 {[%clk 0:02:59.8]} 9... Nxd5 {[%clk
0:02:57.4]} 10. cxd5 {[%clk 0:02:59.9]} 10... Nd4 {[%clk 0:02:57.6]} 11. Nc2
{[%clk 0:02:57.5]} 11... Nxc2+ {[%clk 0:02:56.3]} 12. Qxc2 {[%clk 0:02:57.9]}
12... Be7 {[%clk 0:02:56.6]} 13. Bd3 {[%clk 0:02:56.8]} 13... O-O {[%clk
0:02:56.8]} 14. O-O {[%clk 0:02:56.6]} 14... Bd7 {[%clk 0:02:51.5]} 15. Be3
{[%clk 0:02:53.3]} 15... Bg5 {[%clk 0:02:44.3]} 16. Qd2 {[%clk 0:02:46.7]} 16...
Bxe3 {[%clk 0:02:43.2]} 17. Qxe3 {[%clk 0:02:43.7]} 17... Qa5 {[%clk 0:02:31.3]}
18. a3 {[%clk 0:02:37.7]} 18... Rfc8 {[%clk 0:02:12]} 19. h4 {[%clk 0:02:32.8]}
19... Qd8 {[%clk 0:02:08.4]} 20. g3 {[%clk 0:02:29.4]} 20... Rc5 {[%clk
0:01:56.6]} 21. Rac1 {[%clk 0:02:27.1]} 21... Rac8 {[%clk 0:01:55.7]} 22. Rxc5
{[%clk 0:02:20.9]} 22... Rxc5 {[%clk 0:01:55.4]} 23. Rc1 {[%clk 0:02:20.3]}
23... Qc7 {[%clk 0:01:41.5]} 24. Rxc5 {[%clk 0:02:19.7]} 24... dxc5 {[%clk
0:01:37.8]} 25. Kh2 {[%clk 0:02:05.8]} 25... f6 {[%clk 0:01:34.5]} 26. Bf1
{[%clk 0:02:05]} 26... Qd6 {[%clk 0:01:29.4]} 27. Bh3 {[%clk 0:02:03.4]} 27...
Bxh3 {[%clk 0:01:26.8]} 28. Kxh3 {[%clk 0:02:04.3]} 28... g6 {[%clk 0:01:17.4]}
29. Qc3 {[%clk 0:02:01.8]} 29... Qb6 {[%clk 0:01:13.8]} 30. Qf3 {[%clk
0:01:58.5]} 30... h5 {[%clk 0:01:07.1]} 31. Qe3 {[%clk 0:01:42]} 31... Kg7
{[%clk 0:01:02.5]} 32. Kg2 {[%clk 0:01:40]} 32... Qd6 {[%clk 0:00:58.9]} 33. Qc3
{[%clk 0:01:36.2]} 33... Kf7 {[%clk 0:00:42.4]} 34. Qa5 {[%clk 0:01:32.8]} 34...
f5 {[%clk 0:00:40]} 35. f3 {[%clk 0:01:32.1]} 35... f4 {[%clk 0:00:36.2]} 36.
Qd2 {[%clk 0:01:30.7]} 36... fxg3 {[%clk 0:00:35.7]} 37. Qh6 {[%clk 0:01:27.9]}
37... c4 {[%clk 0:00:22.6]} 38. Qh7+ {[%clk 0:01:26.8]} 38... Kf8 {[%clk
0:00:22.7]} 39. Qh8+ {[%clk 0:01:26.6]} 39... Kf7 {[%clk 0:00:22.2]} 40. Qc8
{[%clk 0:01:15.5]} 40... Qb6 {[%clk 0:00:17.9]} 41. Qd7+ {[%clk 0:01:02.3]}
41... Kf6 {[%clk 0:00:12.9]} 42. Kh3 {[%clk 0:00:41.4]} 42... Qf2 {[%clk
0:00:10.8]} 43. Qe6+ {[%clk 0:00:38.3]} 43... Kg7 {[%clk 0:00:11]} 44. Qxe5+
{[%clk 0:00:38.5]} 44... Kh6 {[%clk 0:00:10.1]} 45. Qh8# {[%clk 0:00:37.9]} 1-0

[Event "*** Titled Tuesday Blitz"]
[Site "Chess.com"]
[Date "2021.02.02"]
[Round "5"]
[White "louis198"]
[Black "utsavp"]
[Result "1-0"]
[WhiteElo "2580"]
[BlackElo "2292"]
[TimeControl "180+1"]
[EndTime "10:58:35 PST"]
[Termination "louis198 won by resignation"]

1. d4 {[%clk 0:03:00.9]} 1... Nf6 {[%clk 0:02:58.5]} 2. c4 {[%clk 0:03:01.8]}
2... g6 {[%clk 0:02:57.8]} 3. Nc3 {[%clk 0:03:01.8]} 3... d5 {[%clk 0:02:58.1]}
4. e3 {[%clk 0:03:02.1]} 4... Bg7 {[%clk 0:02:57.2]} 5. Nf3 {[%clk 0:03:03]}
5... O-O {[%clk 0:02:57]} 6. cxd5 {[%clk 0:03:03.8]} 6... Nxd5 {[%clk
0:02:55.6]} 7. Bc4 {[%clk 0:03:04.4]} 7... Nxc3 {[%clk 0:02:55.2]} 8. bxc3
{[%clk 0:03:05.3]} 8... c5 {[%clk 0:02:55.1]} 9. O-O {[%clk 0:03:05.8]} 9...
cxd4 {[%clk 0:02:54.4]} 10. cxd4 {[%clk 0:03:05.9]} 10... b6 {[%clk 0:02:53]}
11. a4 {[%clk 0:03:05.6]} 11... Bb7 {[%clk 0:02:53.4]} 12. Ba3 {[%clk
0:03:06.2]} 12... Nd7 {[%clk 0:02:52.7]} 13. Qe2 {[%clk 0:03:05.3]} 13... Rc8
{[%clk 0:02:51.5]} 14. Rfc1 {[%clk 0:03:05.3]} 14... Re8 {[%clk 0:02:50]} 15.
Bxf7+ {[%clk 0:02:35]} 15... Kxf7 {[%clk 0:02:45.1]} 16. Ng5+ {[%clk 0:02:35]}
16... Kg8 {[%clk 0:02:31.2]} 17. Qa2+ {[%clk 0:01:40.5]} 17... e6 {[%clk
0:02:29.7]} 18. Nxe6 {[%clk 0:01:39.8]} 18... Rxe6 {[%clk 0:01:48.7]} 19. Qxe6+
{[%clk 0:01:37.8]} 19... Kh8 {[%clk 0:01:49]} 20. Rxc8 {[%clk 0:01:29.4]} 20...
Bxc8 {[%clk 0:01:31.2]} 21. Qe7 {[%clk 0:01:25.8]} 21... Qxe7 {[%clk 0:01:24.9]}
22. Bxe7 {[%clk 0:01:26.7]} 22... Kg8 {[%clk 0:00:57.3]} 23. Rc1 {[%clk
0:01:24.9]} 23... Kf7 {[%clk 0:00:56.7]} 24. Ba3 {[%clk 0:01:13.1]} 24... Ba6
{[%clk 0:00:45.8]} 25. Rc7 {[%clk 0:01:12.8]} 25... Ke8 {[%clk 0:00:44.2]} 26.
Rxa7 {[%clk 0:01:12.8]} 26... Bc4 {[%clk 0:00:41.5]} 27. f3 {[%clk 0:00:51.1]}
27... Bh6 {[%clk 0:00:38.8]} 28. Kf2 {[%clk 0:00:51.2]} 28... Kd8 {[%clk
0:00:34.7]} 29. Bd6 {[%clk 0:00:48.8]} 29... Ke8 {[%clk 0:00:29.7]} 30. Rc7
{[%clk 0:00:41.8]} 30... Bb3 {[%clk 0:00:28.7]} 31. Ra7 {[%clk 0:00:37.8]} 31...
Bg5 {[%clk 0:00:28.2]} 32. a5 {[%clk 0:00:37.3]} 32... bxa5 {[%clk 0:00:23.7]}
33. Rxa5 {[%clk 0:00:38.2]} 33... Bf6 {[%clk 0:00:23]} 34. g4 {[%clk 0:00:34.3]}
34... Bc4 {[%clk 0:00:20.5]} 35. g5 {[%clk 0:00:31.3]} 35... Bxg5 {[%clk
0:00:17.5]} 36. Rxg5 {[%clk 0:00:30.1]} 1-0

[Event "*** Titled Tuesday Blitz"]
[Site "Chess.com"]
[Date "2021.02.02"]
[Round "5"]
[White "politeplayer"]
[Black "oogee"]
[Result "0-1"]
[WhiteElo "2200"]
[BlackElo "2354"]
[TimeControl "180+1"]
[EndTime "10:58:37 PST"]
[Termination "oogee won by resignation"]

1. e4 {[%clk 0:03:00.9]} 1... c5 {[%clk 0:02:59.3]} 2. c3 {[%clk 0:03:00.6]}
2... d5 {[%clk 0:02:56]} 3. exd5 {[%clk 0:03:00.5]} 3... Qxd5 {[%clk 0:02:55.7]}
4. d4 {[%clk 0:03:01]} 4... g6 {[%clk 0:02:53.5]} 5. Nf3 {[%clk 0:02:55.5]} 5...
Bg7 {[%clk 0:02:51.7]} 6. dxc5 {[%clk 0:02:52.8]} 6... Qxc5 {[%clk 0:02:18.7]}
7. Be3 {[%clk 0:02:52.1]} 7... Qc7 {[%clk 0:02:14.2]} 8. Na3 {[%clk 0:02:36]}
8... Bxc3+ {[%clk 0:02:06.3]} 9. bxc3 {[%clk 0:02:22.6]} 9... Qxc3+ {[%clk
0:02:05.6]} 10. Nd2 {[%clk 0:02:16.6]} 10... Qxa3 {[%clk 0:02:03.6]} 11. Bd4
{[%clk 0:02:05.8]} 11... Nf6 {[%clk 0:01:59]} 12. Bb5+ {[%clk 0:01:41.8]} 12...
Nc6 {[%clk 0:01:57.3]} 13. Bxc6+ {[%clk 0:01:40.3]} 13... bxc6 {[%clk
0:01:55.1]} 14. O-O {[%clk 0:01:39.3]} 14... O-O {[%clk 0:01:51.6]} 15. Bxf6
{[%clk 0:01:34.8]} 15... exf6 {[%clk 0:01:50.5]} 16. Ne4 {[%clk 0:01:35]} 16...
Qe7 {[%clk 0:01:36.3]} 17. Qd4 {[%clk 0:01:27.5]} 17... Kg7 {[%clk 0:01:27.3]}
18. Rfe1 {[%clk 0:01:22.1]} 18... Qe5 {[%clk 0:01:26.2]} 19. Qd2 {[%clk
0:01:13.9]} 19... Bf5 {[%clk 0:01:22.7]} 20. Ng3 {[%clk 0:01:12.2]} 20... Qd5
{[%clk 0:01:13.6]} 21. Qxd5 {[%clk 0:01:10.7]} 21... cxd5 {[%clk 0:01:13.4]} 22.
Nxf5+ {[%clk 0:01:11.2]} 22... gxf5 {[%clk 0:01:13.9]} 23. Rad1 {[%clk
0:01:10.1]} 23... Rfd8 {[%clk 0:01:12.6]} 24. Re3 {[%clk 0:01:10.3]} 24... d4
{[%clk 0:01:05.8]} 25. Rg3+ {[%clk 0:01:10.1]} 25... Kf8 {[%clk 0:01:05.8]} 26.
Rgd3 {[%clk 0:01:04.7]} 26... Rac8 {[%clk 0:01:05]} 27. g3 {[%clk 0:01:04.1]}
27... Rc4 {[%clk 0:01:03.5]} 28. Kg2 {[%clk 0:01:02.8]} 28... Ke7 {[%clk
0:00:50.1]} 29. Kf3 {[%clk 0:01:03.1]} 29... Ke6 {[%clk 0:00:44.2]} 30. Kf4
{[%clk 0:00:59.3]} 30... Rd5 {[%clk 0:00:42.6]} 31. Rb1 {[%clk 0:00:55.3]} 31...
Ra4 {[%clk 0:00:35.5]} 32. a3 {[%clk 0:00:43.6]} 32... Rda5 {[%clk 0:00:34.4]}
33. Rbb3 {[%clk 0:00:29.6]} 33... Kd6 {[%clk 0:00:27]} 34. h4 {[%clk 0:00:28.6]}
34... Re5 {[%clk 0:00:19.6]} 35. h5 {[%clk 0:00:26.2]} 35... Kd5 {[%clk
0:00:18.6]} 36. Rb5+ {[%clk 0:00:24.7]} 36... Kc4 {[%clk 0:00:18]} 37. Rdb3
{[%clk 0:00:20.6]} 37... d3 {[%clk 0:00:14.5]} 38. Rxe5 {[%clk 0:00:19.9]} 38...
fxe5+ {[%clk 0:00:14.2]} 0-1

[Event "*** Titled Tuesday Blitz"]
[Site "Chess.com"]
[Date "2021.02.02"]
[Round "5"]
[White "kai_nov"]
[Black "TheCairnTerrier"]
[Result "1-0"]
[WhiteElo "2393"]
[BlackElo "2093"]
[TimeControl "180+1"]
[EndTime "10:58:37 PST"]
[Termination "kai_nov won by resignation"]

1. d4 {[%clk 0:03:00.9]} 1... Nf6 {[%clk 0:02:59.1]} 2. c4 {[%clk 0:02:59.8]}
2... g6 {[%clk 0:02:59.2]} 3. f3 {[%clk 0:02:59.5]} 3... Bg7 {[%clk 0:02:55.6]}
4. e4 {[%clk 0:02:59]} 4... d6 {[%clk 0:02:55.5]} 5. Nc3 {[%clk 0:02:59.6]} 5...
c5 {[%clk 0:02:51.7]} 6. d5 {[%clk 0:02:58.4]} 6... O-O {[%clk 0:02:46.5]} 7.
Bg5 {[%clk 0:02:57.9]} 7... a6 {[%clk 0:02:41.3]} 8. a4 {[%clk 0:02:57.3]} 8...
a5 {[%clk 0:02:38.2]} 9. Bd3 {[%clk 0:02:52.8]} 9... Na6 {[%clk 0:02:38.3]} 10.
Rc1 {[%clk 0:02:51.4]} 10... Nb4 {[%clk 0:02:38.4]} 11. Bb1 {[%clk 0:02:51.5]}
11... h6 {[%clk 0:02:36.1]} 12. Be3 {[%clk 0:02:50.9]} 12... e6 {[%clk
0:02:31.7]} 13. Qd2 {[%clk 0:02:44.3]} 13... exd5 {[%clk 0:02:29.9]} 14. cxd5
{[%clk 0:02:44.1]} 14... Kh7 {[%clk 0:02:28.5]} 15. Nge2 {[%clk 0:02:41.8]}
15... Bd7 {[%clk 0:02:14.7]} 16. O-O {[%clk 0:02:41]} 16... Qe7 {[%clk 0:02:11]}
17. Ng3 {[%clk 0:02:38.3]} 17... Rae8 {[%clk 0:02:05.6]} 18. h3 {[%clk
0:02:36.3]} 18... b6 {[%clk 0:01:54.9]} 19. Rce1 {[%clk 0:02:33]} 19... Bc8
{[%clk 0:01:50.6]} 20. Bd3 {[%clk 0:02:26.7]} 20... Nxd3 {[%clk 0:01:44.4]} 21.
Qxd3 {[%clk 0:02:26.8]} 21... Nd7 {[%clk 0:01:44.7]} 22. f4 {[%clk 0:02:24.4]}
22... Nb8 {[%clk 0:01:20.3]} 23. b3 {[%clk 0:02:07.6]} 23... Na6 {[%clk
0:01:17.2]} 24. Nb5 {[%clk 0:01:56.8]} 24... Nb4 {[%clk 0:01:15.6]} 25. Qc4
{[%clk 0:01:54.5]} 25... f5 {[%clk 0:01:11.1]} 26. exf5 {[%clk 0:01:40.1]} 26...
Bxf5 {[%clk 0:01:12]} 27. Nxf5 {[%clk 0:01:37.1]} 27... Rxf5 {[%clk 0:01:11.3]}
28. Bd2 {[%clk 0:01:28.5]} 28... Qd7 {[%clk 0:00:40]} 29. Rxe8 {[%clk
0:01:27.5]} 29... Qxe8 {[%clk 0:00:39.9]} 30. Nxd6 {[%clk 0:01:27.3]} 30... Bd4+
{[%clk 0:00:26.8]} 31. Kh1 {[%clk 0:01:01]} 31... Qd7 {[%clk 0:00:26.8]} 32.
Nxf5 {[%clk 0:00:57.6]} 32... Qxf5 {[%clk 0:00:27.7]} 33. Bxb4 {[%clk 0:00:52]}
33... axb4 {[%clk 0:00:26.9]} 34. d6 {[%clk 0:00:51.9]} 34... h5 {[%clk
0:00:16.5]} 35. Re1 {[%clk 0:00:43]} 35... Qxf4 {[%clk 0:00:13.9]} 36. Qe6
{[%clk 0:00:38.4]} 36... Bg7 {[%clk 0:00:05.2]} 37. d7 {[%clk 0:00:36.7]} 37...
Qd4 {[%clk 0:00:04.1]} 38. Qe7 {[%clk 0:00:32.6]} 1-0

[Event "*** Titled Tuesday Blitz"]
[Site "Chess.com"]
[Date "2021.02.02"]
[Round "5"]
[White "Susik_Gaboyan"]
[Black "Grandmaster2B"]
[Result "1-0"]
[WhiteElo "2322"]
[BlackElo "2584"]
[TimeControl "180+1"]
[EndTime "10:58:41 PST"]
[Termination "Susik_Gaboyan won by resignation"]

1. Nf3 {[%clk 0:02:58]} 1... Nf6 {[%clk 0:02:59.4]} 2. g3 {[%clk 0:02:58.9]}
2... b5 {[%clk 0:02:57.4]} 3. Bg2 {[%clk 0:02:59.8]} 3... Bb7 {[%clk 0:02:58]}
4. O-O {[%clk 0:03:00.1]} 4... e6 {[%clk 0:02:58.6]} 5. d3 {[%clk 0:02:44.8]}
5... Be7 {[%clk 0:02:56.5]} 6. a4 {[%clk 0:02:37.9]} 6... b4 {[%clk 0:02:55.4]}
7. e4 {[%clk 0:02:34.1]} 7... d5 {[%clk 0:02:54.5]} 8. e5 {[%clk 0:02:27.3]}
8... Nfd7 {[%clk 0:02:53.8]} 9. d4 {[%clk 0:02:26.8]} 9... c5 {[%clk 0:02:44.6]}
10. c3 {[%clk 0:02:23.9]} 10... Nc6 {[%clk 0:02:39.9]} 11. h4 {[%clk 0:02:06]}
11... O-O {[%clk 0:02:39.3]} 12. Be3 {[%clk 0:02:01]} 12... c4 {[%clk
0:02:11.8]} 13. Nbd2 {[%clk 0:01:56.6]} 13... Rb8 {[%clk 0:02:07.1]} 14. Ng5
{[%clk 0:01:49.4]} 14... h6 {[%clk 0:01:59.8]} 15. Nh3 {[%clk 0:01:42.3]} 15...
bxc3 {[%clk 0:01:56.7]} 16. bxc3 {[%clk 0:01:42.1]} 16... Na5 {[%clk 0:01:55.4]}
17. Nf4 {[%clk 0:00:55.4]} 17... Bc6 {[%clk 0:01:43.1]} 18. Nh5 {[%clk
0:00:50.6]} 18... Kh7 {[%clk 0:01:40.2]} 19. Qg4 {[%clk 0:00:42]} 19... g6
{[%clk 0:01:30.8]} 20. Qf4 {[%clk 0:00:36.1]} 20... g5 {[%clk 0:01:00.9]} 21.
Qg4 {[%clk 0:00:20.3]} 21... Rg8 {[%clk 0:00:57.4]} 22. Qf3 {[%clk 0:00:18.9]}
22... Qe8 {[%clk 0:00:51.6]} 23. Rab1 {[%clk 0:00:19.3]} 23... Rxb1 {[%clk
0:00:38]} 24. Rxb1 {[%clk 0:00:17.8]} 24... Nxe5 {[%clk 0:00:35.4]} 25. dxe5
{[%clk 0:00:16.3]} 25... d4 {[%clk 0:00:35.8]} 26. Ne4 {[%clk 0:00:14]} 26...
dxe3 {[%clk 0:00:32.4]} 27. Nhf6+ {[%clk 0:00:13.6]} 27... Bxf6 {[%clk
0:00:31.8]} 28. Nxf6+ {[%clk 0:00:14.5]} 28... Kh8 {[%clk 0:00:16.2]} 29. Qh5
{[%clk 0:00:14.7]} 29... Qf8 {[%clk 0:00:14.5]} 30. Rb8 {[%clk 0:00:15.3]} 30...
exf2+ {[%clk 0:00:11.4]} 31. Kh2 {[%clk 0:00:11.6]} 31... f1=Q {[%clk
0:00:03.4]} 32. Bxf1 {[%clk 0:00:11.7]} 1-0

[Event "*** Titled Tuesday Blitz"]
[Site "Chess.com"]
[Date "2021.02.02"]
[Round "5"]
[White "bazar-wokzal"]
[Black "tk22h"]
[Result "0-1"]
[WhiteElo "2513"]
[BlackElo "2366"]
[TimeControl "180+1"]
[EndTime "10:58:41 PST"]
[Termination "tk22h won by resignation"]

1. e4 {[%clk 0:02:56.6]} 1... e5 {[%clk 0:02:58.8]} 2. Bc4 {[%clk 0:02:55.7]}
2... Nf6 {[%clk 0:02:58.2]} 3. d3 {[%clk 0:02:55.4]} 3... c6 {[%clk 0:02:58.3]}
4. Nf3 {[%clk 0:02:55.2]} 4... Be7 {[%clk 0:02:56.7]} 5. O-O {[%clk 0:02:54.8]}
5... d6 {[%clk 0:02:56.5]} 6. Nc3 {[%clk 0:02:54.4]} 6... O-O {[%clk 0:02:56.2]}
7. a4 {[%clk 0:02:54.1]} 7... a5 {[%clk 0:02:55.2]} 8. h3 {[%clk 0:02:49.7]}
8... Na6 {[%clk 0:02:55.1]} 9. Bg5 {[%clk 0:02:46.3]} 9... Nc7 {[%clk
0:02:53.7]} 10. Qe2 {[%clk 0:02:24.7]} 10... Be6 {[%clk 0:02:53.5]} 11. Rad1
{[%clk 0:02:21.8]} 11... Bxc4 {[%clk 0:02:49.1]} 12. dxc4 {[%clk 0:02:21.4]}
12... Ne6 {[%clk 0:02:49.5]} 13. Be3 {[%clk 0:02:07.1]} 13... Qc7 {[%clk
0:02:44]} 14. Ng5 {[%clk 0:02:01.1]} 14... Nd4 {[%clk 0:02:37.6]} 15. Bxd4
{[%clk 0:01:57]} 15... exd4 {[%clk 0:02:37.7]} 16. Rxd4 {[%clk 0:01:57.2]} 16...
Rfe8 {[%clk 0:02:37.6]} 17. Rfd1 {[%clk 0:01:51]} 17... h6 {[%clk 0:02:34.3]}
18. Nf3 {[%clk 0:01:51.1]} 18... Bf8 {[%clk 0:02:29.7]} 19. Nd2 {[%clk
0:01:33.4]} 19... Re6 {[%clk 0:02:26.5]} 20. Qf3 {[%clk 0:01:31.5]} 20... Rae8
{[%clk 0:02:25]} 21. Re1 {[%clk 0:01:22.4]} 21... Qb6 {[%clk 0:02:15.9]} 22. Nb3
{[%clk 0:01:20]} 22... Qc7 {[%clk 0:01:52.6]} 23. Rd3 {[%clk 0:01:12.8]} 23...
Nd7 {[%clk 0:01:50.2]} 24. Qg3 {[%clk 0:01:03]} 24... Ne5 {[%clk 0:01:45.1]} 25.
Rd4 {[%clk 0:01:03.1]} 25... Nd7 {[%clk 0:01:37.2]} 26. c5 {[%clk 0:00:59.1]}
26... Qb8 {[%clk 0:01:32.9]} 27. cxd6 {[%clk 0:00:56.9]} 27... Bxd6 {[%clk
0:01:32.8]} 28. Qh4 {[%clk 0:00:51.1]} 28... Nc5 {[%clk 0:01:28.2]} 29. Nxc5
{[%clk 0:00:44.8]} 29... Bxc5 {[%clk 0:01:28]} 30. Rd7 {[%clk 0:00:41.3]} 30...
Bb4 {[%clk 0:01:23.6]} 31. Qh5 {[%clk 0:00:25.3]} 31... R6e7 {[%clk 0:01:17]}
32. Rxe7 {[%clk 0:00:24.4]} 32... Rxe7 {[%clk 0:01:16.5]} 33. Re3 {[%clk
0:00:22.8]} 33... Qd6 {[%clk 0:01:07.2]} 34. Rg3 {[%clk 0:00:21.1]} 34... Bxc3
{[%clk 0:01:00.1]} 35. bxc3 {[%clk 0:00:18.2]} 35... Rxe4 {[%clk 0:00:54.3]} 36.
Kh2 {[%clk 0:00:13]} 36... Rxa4 {[%clk 0:00:49.2]} 37. Qf5 {[%clk 0:00:12.8]}
37... Rf4 {[%clk 0:00:46.8]} 38. Qc8+ {[%clk 0:00:12.6]} 38... Kh7 {[%clk
0:00:46.9]} 39. Qxb7 {[%clk 0:00:12.8]} 39... Rxf2 {[%clk 0:00:46.9]} 40. Qa6
{[%clk 0:00:10.8]} 40... Rf5 {[%clk 0:00:42.2]} 41. Qe2 {[%clk 0:00:10.1]} 41...
Rg5 {[%clk 0:00:40.4]} 42. Qe4+ {[%clk 0:00:10.6]} 42... g6 {[%clk 0:00:40.2]}
43. Qd3 {[%clk 0:00:10.4]} 43... Qxg3+ {[%clk 0:00:39.7]} 44. Qxg3 {[%clk
0:00:10.7]} 44... Rxg3 {[%clk 0:00:40]} 45. Kxg3 {[%clk 0:00:11.6]} 45... a4
{[%clk 0:00:40.4]} 0-1